[Event "XIII Mediterranean Championship 2023"]
[Site "Castell-Platja d Aro"]
[Date "2023.11.09"]
[Round "7.9"]
[White "Alsina Leal, Daniel"]
[Black "Valle Luis, Leo"]
[Result "1/2-1/2"]
[ECO "B12"]
[WhiteElo "2531"]
[BlackElo "2216"]
[Annotator "RC"]
[PlyCount "259"]
[EventDate "2023.10.26"]
[EventType "swiss"]
[EventCountry "ESP"]
[SourceTitle "playchess.com"]
[Source "ChessBase"]
[SourceQuality "1"]
[TimeControl "5400+30"]

1. e4 {[%emt 0:03:07]} c6 {[%emt 0:00:14]} 2. d4 {[%emt 0:00:11]} d5 {[%emt 0:00:06]} 3. e5 {[%emt 0:00:05]} c5 {[%emt 0:00:10]} 4. Nf3 {[%emt 0:00:07]} Bg4 {[%emt 0:00:10]} 5. dxc5 {[%emt 0:00:33]} e6 {[%emt 0:00:12]} 6. b4 {[%emt 0:10:57]} a5 {[%emt 0:05:45]} 7. c3 {[%emt 0:01:02]} axb4 {[%emt 0:00:22]} 8. cxb4 {[%emt 0:00:17]} Qc7 {[%emt 0:01:08]} 9. Bb5+ {[%emt 0:07:55]} Nc6 {[%emt 0:05:43]} 10. Nbd2 {[%emt 0:11:10]} b6 {[%emt 0:30:18]} 11. O-O {[%emt 0:07:41]} bxc5 {[%emt 0:02:27]} 12. Nb3 {[%emt 0:03:58]} Nge7 {[%emt 0:11:28]} 13. Nxc5 {[%emt 0:22:35]} Nf5 {[%emt 0:06:19]} 14. Na6 {[%emt 0:02:37]} Rxa6 {[%emt 0:06:29]} 15. Bxa6 {[%emt 0:00:08]} Bxb4 {[%emt 0:00:05]} 16. Bb5 {[%emt 0:08:19]} O-O {[%emt 0:03:27]} 17. Bxc6 {[%emt 0:07:18]} Qxc6 {[%emt 0:04:10]} 18. Bb2 {[%emt 0:01:26]} Qa6 {[%emt 0:07:42]} 19. h3 {[%emt 0:00:23]} Bxf3 {[%emt 0:00:53]} 20. Qxf3 {[%emt 0:00:02]} Bc5 {[%emt 0:00:36]} 21. Rfe1 {[%emt 0:04:53]} h6 {[%emt 0:03:48]} 22. a4 {[%emt 0:03:45]} Rb8 {[%emt 0:02:50]} 23. Qe2 {[%emt 0:00:18]} Qa7 {[%emt 0:00:11]} 24. Ra2 {[%emt 0:03:08]} Ng3 {[%emt 0:01:25]} 25. Qf3 {[%emt 0:00:07]} Ne4 {[%emt 0:00:06]} 26. Bc1 {[%emt 0:00:21]} Qa5 {[%emt 0:04:29]} 27. Rf1 {[%emt 0:00:17]} Rb4 {[%emt 0:00:49]} 28. Bd2 {[%emt 0:01:08]} Nxd2 {[%emt 0:00:08]} 29. Rxd2 {[%emt 0:00:02]} Rxa4 {[%emt 0:00:18]} 30. Rc2 {[%emt 0:00:14]} Ra2 {[%emt 0:01:31]} 31. Rxa2 {[%emt 0:00:32]} Qxa2 {[%emt 0:00:10]} 32. Rc1 {[%emt 0:00:13]} Qa7 {[%emt 0:00:33]} 33. g3 {[%emt 0:00:29]} Qa3 {[%emt 0:01:51]} 34. Qxa3 {[%emt 0:00:59]} Bxa3 {[%emt 0:00:02]} 35. Rc7 {[%emt 0:00:23]} Bb2 {[%emt 0:00:34]} 36. f4 {[%emt 0:00:06]} f6 {[%emt 0:00:27]} 37. Re7 {[%emt 0:01:40]} fxe5 {[%emt 0:00:11]} 38. fxe5 {[%emt 0:00:28]} Bxe5 {[%emt 0:00:08]} 39. Kg2 {[%emt 0:00:11]} Bf6 {[%emt 0:00:49]} 40. Rxe6 {[%emt 0:00:02]} Kf7 {[%emt 0:01:17]} 41. Rd6 {[%emt 0:00:09]} d4 {[%emt 0:00:19]} 42. Kf3 {[%emt 0:00:31]} Be5 {[%emt 0:01:07]} 43. Ra6 {[%emt 0:01:10]} d3 {[%emt 0:00:28]} 44. Ra3 {[%emt 0:00:33]} d2 {[%emt 0:00:26]} 45. Rd3 {[%emt 0:00:27]} Bc3 {[%emt 0:00:19]} 46. Ke4 {[%emt 0:00:18]} h5 {[%emt 0:00:15]} 47. Kd5 {[%emt 0:00:45]} Kg6 {[%emt 0:00:27]} 48. Ke6 {[%emt 0:00:44]} Ba5 {[%emt 0:00:10]} 49. Rd5 {[%emt 0:00:40]} Bc7 {[%emt 0:00:34]} 50. Rxd2 {[%emt 0:00:33]} Bxg3 {[%emt 0:00:06]} 51. Rg2 {[%emt 0:00:15]} h4 {[%emt 0:00:02]} 52. Ra2 {[%emt 0:00:39]} Bc7 {[%emt 0:01:41]} 53. Ra4 {[%emt 0:00:09]} Bd8 {[%emt 0:00:06]} 54. Rg4+ {[%emt 0:00:11]} Kh6 {[%emt 0:00:31]} 55. Kf5 {[%emt 0:00:37]} Bf6 {[%emt 0:00:07]} 56. Ra4 {[%emt 0:00:23]} Kh7 {[%emt 0:00:12]} 57. Ra8 {[%emt 0:00:30]} Be7 {[%emt 0:00:16]} 58. Rc8 {[%emt 0:01:10]} Bf6 {[%emt 0:00:51]} 59. Re8 {[%emt 0:00:21]} Bd4 {[%emt 0:00:37]} 60. Kg5 {[%emt 0:00:20]} Bf2 {[%emt 0:00:15]} 61. Re4 {[%emt 0:00:33]} Bg3 {[%emt 0:00:06]} 62. Re2 {[%emt 0:00:17]} Bc7 {[%emt 0:02:33]} 63. Kxh4 {[%emt 0:00:34]} Kh6 {[%emt 0:00:08]} 64. Re8 {[%emt 0:00:24]} g6 {[%emt 0:00:36]} 65. Kg4 {[%emt 0:00:13]} Ba5 {[%emt 0:00:18]} 66. Rh8+ {[%emt 0:00:32]} Kg7 {[%emt 0:00:05]} 67. Ra8 {[%emt 0:00:09]} Bd2 {[%emt 0:00:06]} 68. Rd8 {[%emt 0:00:40]} Bc1 {[%emt 0:00:16]} 69. Rd5 {[%emt 0:00:17]} Kh6 {[%emt 0:00:18]} 70. Kf3 {[%emt 0:00:14]} Bg5 {[%emt 0:01:03]} 71. Rb5 {[%emt 0:01:03]} Bd2 {[%emt 0:01:05]} 72. Ke4 {[%emt 0:00:12]} Bc3 {[%emt 0:00:08]} 73. Rc5 {[%emt 0:00:59]} Ba1 {[%emt 0:00:06]} 74. Rd5 {[%emt 0:01:04]} Kg7 {[%emt 0:00:28]} 75. Ra5 {[%emt 0:00:22]} Bb2 {[%emt 0:00:11]} 76. Rb5 {[%emt 0:00:32]} Bc3 {[%emt 0:00:07]} 77. Kd5 {[%emt 0:00:30]} Kf7 {[%emt 0:00:33]} 78. Rb3 {[%emt 0:00:25]} Bf6 {[%emt 0:01:07]} 79. Rb7+ {[%emt 0:00:29]} Kg8 {[%emt 0:00:10]} 80. Ke6 {[%emt 0:00:21]} Bd4 {[%emt 0:00:07]} 81. Rf7 {[%emt 0:00:53]} Bb2 {[%emt 0:00:06]} 82. Rf2 {[%emt 0:00:27]} Bd4 {[%emt 0:01:23]} 83. Rg2 {[%emt 0:00:25]} Kg7 {[%emt 0:00:17]} 84. Rg4 {[%emt 0:00:46]} Bc3 {[%emt 0:01:11]} 85. Rc4 {[%emt 0:00:26]} Bb2 {[%emt 0:00:00]} 86. Rc7+ {[%emt 0:00:27]} Kg8 {[%emt 0:00:00]} 87. Kd5 {[%emt 0:00:29]} Bg7 {[%emt 0:00:00]} 88. Ke4 {[%emt 0:00:24]} Kh7 {[%emt 0:01:02]} 89. Kf4 {[%emt 0:00:28]} Kh6 {[%emt 0:00:06]} 90. Rb7 {[%emt 0:00:26]} Bc3 {[%emt 0:00:13]} 91. Ke4 {[%emt 0:00:16]} Kg5 {[%emt 0:01:59]} 92. Rf7 {[%emt 0:00:24]} Kh4 {[%emt 0:01:14]} 93. Rf3 {[%emt 0:00:34]} Be1 {[%emt 0:01:01]} 94. Kf4 {[%emt 0:01:08]} g5+ {[%emt 0:00:23]} 95. Kf5 {[%emt 0:00:19]} Bg3 {[%emt 0:00:06]} 96. Re3 {[%emt 0:00:36]} Kxh3 {[%emt 0:00:17]} 97. Kxg5 {[%emt 0:00:08]} Kg2 {[%emt 0:00:02]} 98. Kg4 {[%emt 0:00:04]} Bh2 {[%emt 0:00:30]} 99. Re2+ {[%emt 0:00:08]} Kh1 {[%emt 0:00:24]} 100. Kh3 {[%emt 0:00:07]} Bg1 {[%emt 0:00:06]} 101. Kg3 {[%emt 0:00:25]} Bc5 {[%emt 0:00:24]} 102. Rd2 {[%emt 0:00:55]} Bb6 {[%emt 0:00:37]} 103. Rc2 {[%emt 0:00:22]} Bd4 {[%emt 0:00:09]} 104. Rc1+ {[%emt 0:00:37]} Bg1 {[%emt 0:00:10]} 105. Rc8 {[%emt 0:00:19]} Bh2+ {[%emt 0:00:09]} 106. Kh3 {[%emt 0:00:14]} Bg1 {[%emt 0:00:15]} 107. Rc2 {[%emt 0:00:20]} Bb6 {[%emt 0:00:18]} 108. Rb2 {[%emt 0:01:12]} Bg1 {[%emt 0:00:12]} 109. Ra2 {[%emt 0:00:21]} Bd4 {[%emt 0:00:41]} 110. Rh2+ {[%emt 0:00:22]} Kg1 {[%emt 0:00:02]} 111. Rd2 {[%emt 0:00:25]} Be3 {[%emt 0:00:10]} 112. Re2 {[%emt 0:00:34]} Bb6 {[%emt 0:00:27]} 113. Rb2 {[%emt 0:00:41]} Bd4 {[%emt 0:00:38]} 114. Rd2 {[%emt 0:00:34]} Bb6 {[%emt 0:00:09]} 115. Rc2 {[%emt 0:00:32]} Bd4 {[%emt 0:00:07]} 116. Ra2 {[%emt 0:00:31]} Kh1 {[%emt 0:00:11]} 117. Rd2 {[%emt 0:00:24]} Bg1 {[%emt 0:00:10]} 118. Kg3 {[%emt 0:00:27]} Bb6 {[%emt 0:00:13]} 119. Rh2+ {[%emt 0:00:29]} Kg1 {[%emt 0:00:09]} 120. Rb2 {[%emt 0:00:21]} Bc7+ {[%emt 0:00:12]} 121. Kh3 {[%emt 0:00:30]} Be5 {[%emt 0:00:20]} 122. Rd2 {[%emt 0:00:24]} Bc7 {[%emt 0:00:21]} 123. Rg2+ {[%emt 0:00:52]} Kh1 {[%emt 0:00:37]} 124. Rc2 {[%emt 0:00:15]} Bb6 {[%emt 0:00:06]} 125. Rh2+ {[%emt 0:00:15]} Kg1 {[%emt 0:00:12]} 126. Rb2 {[%emt 0:00:30]} Bc5 {[%emt 0:01:02]} 127. Rc2 {[%emt 0:00:11]} Bb6 {[%emt 0:00:07]} 128. Ra2 {[%emt 0:00:23]} Kh1 {[%emt 0:00:17]} 129. Rh2+ {[%emt 0:00:09]} Kg1 {[%emt 0:00:07]} 130. Rb2 {[%emt 0:00:10]} 1/2-1/2

[Event "XIII Mediterranean Championship 2023"]
[Site "Castell-Platja d Aro"]
[Date "2023.11.09"]
[Round "7.10"]
[White "Banos, Oscar"]
[Black "Eugene, Floryan"]
[Result "1-0"]
[ECO "E94"]
[WhiteElo "2188"]
[BlackElo "2426"]
[Annotator "RC"]
[PlyCount "181"]
[EventDate "2023.10.26"]
[EventType "swiss"]
[EventCountry "ESP"]
[SourceTitle "playchess.com"]
[Source "ChessBase"]
[SourceQuality "1"]
[TimeControl "5400+30"]

1. c4 {[%emt 0:00:01]} Nf6 {[%emt 0:01:54]} 2. Nf3 {[%emt 0:00:08]} g6 {[%emt 0:00:44]} 3. Nc3 {[%emt 0:01:54]} Bg7 {[%emt 0:00:07]} 4. e4 {[%emt 0:00:18]} d6 {[%emt 0:00:11]} 5. d4 {[%emt 0:00:21]} O-O {[%emt 0:00:07]} 6. Be2 {[%emt 0:00:12]} Na6 {[%emt 0:00:12]} 7. O-O {[%emt 0:00:55]} e5 {[%emt 0:00:02]} 8. d5 {[%emt 0:00:56]} Nc5 {[%emt 0:00:05]} 9. Qc2 {[%emt 0:00:15]} a5 {[%emt 0:00:08]} 10. Bg5 {[%emt 0:00:31]} h6 {[%emt 0:04:06]} 11. Be3 {[%emt 0:00:18]} b6 {[%emt 0:00:06]} 12. Nd2 {[%emt 0:00:21]} h5 {[%emt 0:06:23]} 13. a3 {[%emt 0:02:21]} Ng4 {[%emt 0:01:15]} 14. Bxg4 {[%emt 0:00:44]} hxg4 {[%emt 0:00:04]} 15. b4 {[%emt 0:00:27]} Nd7 {[%emt 0:02:53]} 16. f3 {[%emt 0:06:27]} f5 {[%emt 0:08:19]} 17. fxg4 {[%emt 0:06:04]} axb4 {[%emt 0:00:13]} 18. axb4 {[%emt 0:00:29]} Rxa1 {[%emt 0:00:03]} 19. Rxa1 {[%emt 0:00:08]} fxg4 {[%emt 0:00:33]} 20. g3 {[%emt 0:14:27]} Bf6 {[%emt 0:02:26]} 21. Nb5 {[%emt 0:03:33]} Nb8 {[%emt 0:05:01]} 22. Ra8 {[%emt 0:17:27]} Ba6 {[%emt 0:02:45]} 23. Na7 {[%emt 0:07:04]} Bg5 {[%emt 0:03:02]} 24. Qd3 {[%emt 0:01:56]} Qf6 {[%emt 0:02:19]} 25. Nb5 {[%emt 0:05:35]} Qf7 {[%emt 0:02:51]} 26. Qe2 {[%emt 0:01:47]} Bxe3+ {[%emt 0:00:44]} 27. Qxe3 {[%emt 0:00:06]} Bxb5 {[%emt 0:00:04]} 28. cxb5 {[%emt 0:00:07]} Nd7 {[%emt 0:00:05]} 29. Rxf8+ {[%emt 0:03:27]} Nxf8 {[%emt 0:00:06]} 30. Qe2 {[%emt 0:01:04]} Qd7 {[%emt 0:00:08]} 31. Nf1 {[%emt 0:00:49]} Nh7 {[%emt 0:00:03]} 32. Ne3 {[%emt 0:00:41]} Nf6 {[%emt 0:00:04]} 33. Qc4 {[%emt 0:01:46]} Qh7 {[%emt 0:00:34]} 34. Qc6 {[%emt 0:03:07]} Qf7 {[%emt 0:01:33]} 35. Qc4 {[%emt 0:01:52]} Qd7 {[%emt 0:02:10]} 36. Kg2 {[%emt 0:06:53]} Qh7 {[%emt 0:04:55]} 37. Kg1 {[%emt 0:00:09]} Qh6 {[%emt 0:00:08]} 38. Nd1 {[%emt 0:01:08]} Qg7 {[%emt 0:06:02]} 39. Nf2 {[%emt 0:00:34]} Qd7 {[%emt 0:00:06]} 40. Qc6 {[%emt 0:02:00]} Qc8 {[%emt 0:00:02]} 41. Kg2 {[%emt 0:00:37]} Kf7 {[%emt 0:00:06]} 42. Qc4 {[%emt 0:00:52]} Kg7 {[%emt 0:01:55]} 43. Qc6 {[%emt 0:00:05]} Qd8 {[%emt 0:00:56]} 44. Qc4 {[%emt 0:00:19]} Qc8 {[%emt 0:05:33]} 45. Qc6 {[%emt 0:00:09]} Ng8 {[%emt 0:00:03]} 46. Qc4 {[%emt 0:00:45]} Nh6 {[%emt 0:00:05]} 47. Qc2 {[%emt 0:00:23]} Qd7 {[%emt 0:00:11]} 48. Qc6 {[%emt 0:00:24]} Qf7 {[%emt 0:00:05]} 49. Qc3 {[%emt 0:00:28]} Kh7 {[%emt 0:00:23]} 50. Qe3 {[%emt 0:00:15]} Qd7 {[%emt 0:02:41]} 51. Qd3 {[%emt 0:01:37]} Kg7 {[%emt 0:00:05]} 52. Qc4 {[%emt 0:00:18]} Ng8 {[%emt 0:02:11]} 53. Qc6 {[%emt 0:00:43]} Qc8 {[%emt 0:00:05]} 54. Qc4 {[%emt 0:00:25]} Kf8 {[%emt 0:02:35]} 55. Qe2 {[%emt 0:01:05]} Nf6 {[%emt 0:00:05]} 56. Qc2 {[%emt 0:00:33]} Qb7 {[%emt 0:00:32]} 57. Qe2 {[%emt 0:00:20]} Qc8 {[%emt 0:00:03]} 58. Qc2 {[%emt 0:00:04]} Ke7 {[%emt 0:00:07]} 59. Qc4 {[%emt 0:01:04]} Kd8 {[%emt 0:01:46]} 60. Qc1 {[%emt 0:00:26]} Ke8 {[%emt 0:00:04]} 61. Qc6+ {[%emt 0:00:32]} Kf7 {[%emt 0:00:35]} 62. Qc4 {[%emt 0:00:13]} g5 {[%emt 0:00:21]} 63. Qc2 {[%emt 0:02:43]} Kg6 {[%emt 0:00:07]} 64. Qc4 {[%emt 0:00:05]} Qd7 {[%emt 0:01:20]} 65. Qe2 {[%emt 0:00:37]} Kh6 {[%emt 0:00:24]} 66. Qd3 {[%emt 0:00:26]} Kg7 {[%emt 0:01:20]} 67. Qe2 {[%emt 0:00:07]} Kg6 {[%emt 0:00:03]} 68. Qd3 {[%emt 0:00:13]} Qd8 {[%emt 0:00:41]} 69. Qe2 {[%emt 0:00:15]} Qc8 {[%emt 0:00:09]} 70. Qd1 {[%emt 0:00:39]} Qa8 {[%emt 0:01:21]} 71. Qe2 {[%emt 0:00:41]} Qa4 {[%emt 0:04:07]} 72. Nxg4 {[%emt 0:00:50]} Qxb4 {[%emt 0:00:20]} 73. Nxf6 {[%emt 0:02:39]} Kxf6 {[%emt 0:00:02]} 74. Qf3+ {[%emt 0:00:16]} Ke7 {[%emt 0:00:49]} 75. Qf5 {[%emt 0:00:27]} Qxb5 {[%emt 0:00:47]} 76. Qxg5+ {[%emt 0:00:08]} Kd7 {[%emt 0:00:09]} 77. Qf5+ {[%emt 0:01:01]} Ke7 {[%emt 0:00:15]} 78. h4 {[%emt 0:00:44]} Qe2+ {[%emt 0:00:17]} 79. Kh3 {[%emt 0:00:10]} b5 {[%emt 0:00:27]} 80. h5 {[%emt 0:00:21]} Qd1 {[%emt 0:01:00]} 81. Kh4 {[%emt 0:00:47]} Qc1 {[%emt 0:00:53]} 82. Qe6+ {[%emt 0:00:48]} Kf8 {[%emt 0:00:16]} 83. h6 {[%emt 0:00:20]} Qh1+ {[%emt 0:00:19]} 84. Kg5 {[%emt 0:00:35]} Qf3 {[%emt 0:00:32]} 85. Qc8+ {[%emt 0:01:01]} Kf7 {[%emt 0:00:10]} 86. Qxc7+ {[%emt 0:00:10]} Ke8 {[%emt 0:00:13]} 87. Qc8+ {[%emt 0:00:41]} Kf7 {[%emt 0:00:26]} 88. Qe6+ {[%emt 0:00:08]} Kf8 {[%emt 0:00:04]} 89. Qxd6+ {[%emt 0:00:05]} Kf7 {[%emt 0:00:09]} 90. Qe6+ {[%emt 0:00:39]} Kf8 {[%emt 0:00:03]} 91. Qf6+ {[%emt 0:00:15]} 1-0

[Event "XIII Mediterranean Championship 2023"]
[Site "Castell-Platja d Aro"]
[Date "2023.11.09"]
[Round "7.11"]
[White "Gilevych, Artem"]
[Black "Fortuny Profitos, Jordi"]
[Result "1-0"]
[ECO "E73"]
[WhiteElo "2416"]
[BlackElo "2135"]
[Annotator "RC"]
[PlyCount "65"]
[EventDate "2023.10.26"]
[EventType "swiss"]
[EventCountry "ESP"]
[SourceTitle "playchess.com"]
[Source "ChessBase"]
[SourceQuality "1"]
[TimeControl "5400+30"]

1. d4 {[%emt 0:00:04]} Nf6 {[%emt 0:01:50]} 2. c4 {[%emt 0:00:08]} g6 {[%emt 0:00:05]} 3. Nc3 {[%emt 0:00:05]} Bg7 {[%emt 0:00:09]} 4. e4 {[%emt 0:00:06]} d6 {[%emt 0:00:14]} 5. Be2 {[%emt 0:00:12]} O-O {[%emt 0:00:19]} 6. Be3 {[%emt 0:00:06]} Nc6 {[%emt 0:05:03]} 7. d5 {[%emt 0:00:11]} Nb4 {[%emt 0:00:59]} 8. Nf3 {[%emt 0:02:02]} c5 {[%emt 0:02:09]} 9. Nd2 {[%emt 0:05:15]} e6 {[%emt 0:03:07]} 10. O-O {[%emt 0:01:45]} exd5 {[%emt 0:02:33]} 11. cxd5 {[%emt 0:00:06]} Re8 {[%emt 0:02:05]} 12. Bf4 {[%emt 0:06:39]} Qe7 {[%emt 0:11:23]} 13. Re1 {[%emt 0:16:42]} Nd7 {[%emt 0:06:33]} 14. Bb5 {[%emt 0:01:43]} Rd8 {[%emt 0:03:21]} 15. a3 {[%emt 0:04:42]} Na6 {[%emt 0:01:20]} 16. Bg3 {[%emt 0:01:44]} Nc7 {[%emt 0:08:29]} 17. Bf1 {[%emt 0:01:49]} b5 {[%emt 0:01:47]} 18. Nxb5 {[%emt 0:01:31]} Nxb5 {[%emt 0:00:49]} 19. Bxb5 {[%emt 0:00:03]} Rb8 {[%emt 0:06:46]} 20. Bf1 {[%emt 0:03:24]} Bxb2 {[%emt 0:07:39]} 21. Nc4 {[%emt 0:00:34]} Ne5 {[%emt 0:00:05]} 22. Nxb2 {[%emt 0:03:20]} Rxb2 {[%emt 0:00:21]} 23. f4 {[%emt 0:07:34]} Ng4 {[%emt 0:03:54]} 24. h3 {[%emt 0:05:06]} Nh6 {[%emt 0:04:16]} 25. Rb1 {[%emt 0:00:08]} Qb7 {[%emt 0:00:56]} 26. Bh4 {[%emt 0:04:11]} Re8 {[%emt 0:04:40]} 27. Qa4 {[%emt 0:02:37]} Rxb1 {[%emt 0:03:16]} 28. Qxe8+ {[%emt 0:00:25]} Kg7 {[%emt 0:00:02]} 29. Rxb1 {[%emt 0:00:56]} Qxb1 {[%emt 0:00:03]} 30. Be7 {[%emt 0:03:39]} g5 {[%emt 0:02:46]} 31. fxg5 {[%emt 0:00:56]} Ba6 {[%emt 0:00:16]} 32. Qf8+ {[%emt 0:00:10]} Kg6 {[%emt 0:00:06]} 33. Qxh6# {[%emt 0:00:04]} 1-0

[Event "XIII Mediterranean Championship 2023"]
[Site "Castell-Platja d Aro"]
[Date "2023.11.09"]
[Round "7.12"]
[White "Lazaro Pujol, Abel"]
[Black "Jimenez Fernandez, Rebeca"]
[Result "1-0"]
[ECO "B76"]
[WhiteElo "2289"]
[BlackElo "2053"]
[Annotator "RC"]
[PlyCount "149"]
[EventDate "2023.10.26"]
[EventType "swiss"]
[EventCountry "ESP"]
[SourceTitle "playchess.com"]
[Source "ChessBase"]
[SourceQuality "1"]
[TimeControl "5400+30"]

1. e4 {[%emt 0:03:14]} c5 {[%emt 0:00:01]} 2. Nf3 {[%emt 0:00:19]} d6 {[%emt 0:00:03]} 3. d4 {[%emt 0:00:23]} cxd4 {[%emt 0:00:03]} 4. Nxd4 {[%emt 0:00:09]} Nf6 {[%emt 0:00:03]} 5. Nc3 {[%emt 0:00:22]} g6 {[%emt 0:00:03]} 6. Be3 {[%emt 0:00:32]} Bg7 {[%emt 0:00:04]} 7. f3 {[%emt 0:01:08]} O-O {[%emt 0:00:04]} 8. Qd2 {[%emt 0:00:13]} Nc6 {[%emt 0:00:03]} 9. O-O-O {[%emt 0:01:54]} d5 {[%emt 0:00:02]} 10. exd5 {[%emt 0:00:48]} Nxd5 {[%emt 0:00:05]} 11. Nxc6 {[%emt 0:00:43]} bxc6 {[%emt 0:00:07]} 12. Bd4 {[%emt 0:00:09]} e5 {[%emt 0:00:03]} 13. Bc5 {[%emt 0:00:17]} Re8 {[%emt 0:00:03]} 14. Ne4 {[%emt 0:03:31]} Qc7 {[%emt 0:00:04]} 15. h4 {[%emt 0:03:16]} f5 {[%emt 0:00:06]} 16. Nd6 {[%emt 0:04:34]} Rd8 {[%emt 0:00:04]} 17. Nxc8 {[%emt 0:01:57]} Raxc8 {[%emt 0:00:04]} 18. h5 {[%emt 0:05:06]} Nb6 {[%emt 0:00:24]} 19. Bxb6 {[%emt 0:07:49]} Rxd2 {[%emt 0:00:18]} 20. Bc4+ {[%emt 0:01:13]} Kf8 {[%emt 0:00:04]} 21. Bxc7 {[%emt 0:00:30]} Rxd1+ {[%emt 0:00:12]} 22. Rxd1 {[%emt 0:01:09]} Bh6+ {[%emt 0:00:03]} 23. Kb1 {[%emt 0:00:10]} Rxc7 {[%emt 0:00:04]} 24. Rd6 {[%emt 0:02:26]} Kg7 {[%emt 0:00:51]} 25. hxg6 {[%emt 0:12:24]} hxg6 {[%emt 0:00:05]} 26. b4 {[%emt 0:00:03]} Bf4 {[%emt 0:20:00]} 27. Re6 {[%emt 0:06:29]} Bd2 {[%emt 0:27:10]} 28. a3 {[%emt 0:03:34]} a5 {[%emt 0:16:02]} 29. bxa5 {[%emt 0:02:33]} Bxa5 {[%emt 0:03:01]} 30. Rxe5 {[%emt 0:02:23]} Bc3 {[%emt 0:00:06]} 31. Re3 {[%emt 0:03:04]} Bd4 {[%emt 0:00:05]} 32. Rd3 {[%emt 0:01:29]} Bc5 {[%emt 0:01:23]} 33. a4 {[%emt 0:03:27]} Kf6 {[%emt 0:00:46]} 34. Rd8 {[%emt 0:04:08]} Ke5 {[%emt 0:08:42]} 35. c3 {[%emt 0:03:35]} Ra7 {[%emt 0:10:46]} 36. Bb3 {[%emt 0:00:43]} g5 {[%emt 0:02:58]} 37. Rc8 {[%emt 0:04:20]} Ra6 {[%emt 0:00:40]} 38. g3 {[%emt 0:00:36]} Bf2 {[%emt 0:04:01]} 39. Re8+ {[%emt 0:00:44]} Kd6 {[%emt 0:01:16]} 40. Re6+ {[%emt 0:01:10]} Kc7 {[%emt 0:00:08]} 41. Re5 {[%emt 0:04:28]} Bxg3 {[%emt 0:01:03]} 42. Rxf5 {[%emt 0:00:34]} Bf4 {[%emt 0:00:04]} 43. a5 {[%emt 0:00:12]} Ra8 {[%emt 0:01:12]} 44. Bc4 {[%emt 0:00:50]} Kd6 {[%emt 0:01:00]} 45. Kc2 {[%emt 0:00:43]} Be3 {[%emt 0:01:21]} 46. a6 {[%emt 0:01:52]} Bf4 {[%emt 0:03:35]} 47. Kd3 {[%emt 0:00:40]} Kc7 {[%emt 0:00:23]} 48. Rf7+ {[%emt 0:01:14]} Kb6 {[%emt 0:00:11]} 49. Kc2 {[%emt 0:02:44]} Ra7 {[%emt 0:01:10]} 50. Rf6 {[%emt 0:01:14]} Kc5 {[%emt 0:00:27]} 51. Bd3 {[%emt 0:00:13]} Be3 {[%emt 0:01:27]} 52. Rf5+ {[%emt 0:00:44]} Kb6 {[%emt 0:00:09]} 53. Kb3 {[%emt 0:00:18]} Bf4 {[%emt 0:00:30]} 54. Rf8 {[%emt 0:05:49]} Kc5 {[%emt 0:01:47]} 55. Re8 {[%emt 0:00:42]} Bg3 {[%emt 0:00:57]} 56. Re4 {[%emt 0:01:21]} Kb6 {[%emt 0:01:03]} 57. Rb4+ {[%emt 0:02:06]} Kc7 {[%emt 0:00:05]} 58. Ka4 {[%emt 0:00:21]} Be1 {[%emt 0:00:13]} 59. Rb3 {[%emt 0:00:23]} Bd2 {[%emt 0:00:48]} 60. Ka5 {[%emt 0:00:52]} Be1 {[%emt 0:00:22]} 61. Kb4 {[%emt 0:00:34]} Bd2 {[%emt 0:00:28]} 62. Rb2 {[%emt 0:00:23]} Bf4 {[%emt 0:02:29]} 63. Ka5 {[%emt 0:00:21]} Be5 {[%emt 0:00:13]} 64. Rb3 {[%emt 0:00:28]} Bf4 {[%emt 0:00:09]} 65. Rb4 {[%emt 0:00:18]} Bd2 {[%emt 0:01:09]} 66. Rc4 {[%emt 0:00:19]} Be3 {[%emt 0:00:03]} 67. Be4 {[%emt 0:00:18]} Bb6+ {[%emt 0:00:10]} 68. Kb4 {[%emt 0:00:05]} Rxa6 {[%emt 0:01:21]} 69. Rxc6+ {[%emt 0:00:31]} Kb7 {[%emt 0:00:14]} 70. Rg6+ {[%emt 0:01:00]} Kc7 {[%emt 0:00:31]} 71. Rg7+ {[%emt 0:00:39]} Kd8 {[%emt 0:00:12]} 72. Kb5 {[%emt 0:00:22]} Ra7 {[%emt 0:01:06]} 73. Rg8+ {[%emt 0:00:07]} Ke7 {[%emt 0:00:06]} 74. Kxb6 {[%emt 0:00:07]} Ra3 {[%emt 0:00:12]} 75. c4 {[%emt 0:00:12]} 1-0